fUSD/lending_fUSD_20251102
["ID","MTS","AMOUNT","RATE_DAILY","PERIOD"]
[392882639,1762105767953,500.0,0.00030136,120]
[392882640,1762105767995,500.0,0.00030136,120]
[392882641,1762105768069,500.0,0.00030136,120]
[392882642,1762105768955,645.46537287,0.00030136,120]
[392882643,1762105769019,500.0,0.00030136,120]
[392882644,1762105769098,500.0,0.00030136,120]
[392882645,1762105769251,500.0,0.00030136,120]
[392882646,1762105769641,1394.21,0.00030136,120]
[392882647,1762105769727,500.0,0.00030136,120]
[392882648,1762105769803,1504.57,0.00030136,120]
[392882649,1762105769914,500.0,0.00030136,120]
[392882650,1762105770679,500.0,0.00030136,120]
[392882651,1762105771307,500.0,0.00030136,120]
[392882652,1762105771455,500.0,0.00030136,120]
[392882653,1762105772863,500.0,0.00030136,120]
[392882654,1762105772963,500.0,0.00030136,120]
[392882655,1762105773236,500.0,0.00030136,120]
[392882656,1762105773454,500.0,0.00030136,120]
[392882657,1762105773712,500.0,0.00030136,120]
[392882658,1762105774457,500.0,0.00030136,120]
[392882659,1762105774769,500.0,0.00030136,120]
[392882660,1762105774922,500.0,0.00030136,120]
[392882661,1762105774998,500.0,0.00030136,120]
[392882662,1762105775053,234.35785128,0.00030136,120]
[392882663,1762105775378,500.0,0.00030136,120]
[392882664,1762105775517,500.0,0.00030136,120]
[392882665,1762105776870,500.0,0.00030136,120]
[392882666,1762105776998,500.0,0.00030136,120]
[392882667,1762105777074,500.0,0.00030136,120]
[392882668,1762105777132,1073.47,0.00030136,120]
[392882669,1762105777364,500.0,0.00030136,120]
[392882670,1762105778098,500.0,0.00030136,120]
[392882671,1762105778641,1475.27,0.00030136,120]
[392882672,1762105779295,432.26255975,0.00030136,120]
[392882673,1762105779808,517.99382967,0.00030136,120]
[392882674,1762105780212,500.0,0.00030136,120]
[392882675,1762105780931,900.97,0.00030136,120]
[392882676,1762105781010,500.0,0.00030136,120]
[392882677,1762105781088,500.0,0.00030136,120]
[392882678,1762105781134,500.0,0.00030136,120]
[392882679,1762105781210,500.0,0.00030136,120]
[392882680,1762105781658,250.0,0.0001397,2]
[392882681,1762105783294,500.0,0.00030136,120]
[392882682,1762105785050,500.0,0.00030136,120]
[392882683,1762105785157,500.0,0.00030136,120]
[392882684,1762105785640,500.0,0.00030136,120]
[392882685,1762105786243,500.0,0.00030136,120]
[392882686,1762105786643,500.0,0.00030136,120]
[392882687,1762105786688,500.0,0.00030136,120]
[392882688,1762105786905,317.46822625,0.00030136,120]
[392882689,1762105786957,511.57248915,0.00030136,120]
[392882690,1762105787278,500.0,0.00030136,120]
[392882691,1762105788010,500.0,0.00030136,120]
[392882692,1762105788058,500.0,0.00030136,120]
[392882693,1762105788738,500.0,0.00030136,120]
[392882694,1762105788837,500.0,0.00030136,120]
[392882695,1762105788898,500.0,0.00030136,120]
[392882696,1762105789106,500.0,0.00030136,120]
[392882697,1762105789147,500.0,0.00030136,120]
[392882698,1762105789255,500.0,0.00030136,120]
[392882699,1762105789363,500.0,0.00030136,120]
[392882700,1762105789717,725.19,0.00030136,120]
[392882701,1762105790428,500.0,0.00030136,120]
[392882702,1762105790530,500.0,0.00030136,120]
[392882703,1762105790643,500.0,0.00030136,120]
[392882704,1762105791777,500.0,0.00030136,120]
[392882705,1762105791868,500.0,0.00030136,120]
[392882706,1762105791917,517.12281763,0.00030136,120]
[392882707,1762105792636,2622.98,0.00030136,120]
[392882708,1762105793075,500.0,0.00030136,120]
[392882709,1762105794139,500.0,0.00030136,120]
[392882710,1762105794186,500.0,0.00030136,120]
[392882711,1762105794593,500.0,0.00030136,120]
[392882712,1762105795149,500.0,0.00030136,120]
[392882713,1762105795427,500.0,0.00030136,120]
[392882714,1762105795879,396.06471981,0.00030136,120]
[392882715,1762105795935,533.15442735,0.00030136,120]
[392882716,1762105796258,500.0,0.00030136,120]
[392882717,1762105796397,500.0,0.00030136,120]
[392882718,1762105796625,636.08963876,0.00030136,120]
[392882719,1762105797115,500.0,0.00030136,120]
[392882720,1762105798115,500.0,0.00030136,120]
[392882721,1762105798159,500.0,0.00030136,120]
[392882722,1762105798203,500.0,0.00030136,120]
[392882723,1762105798393,512.35030394,0.00030136,120]
[392882724,1762105798768,1009.87,0.00030136,120]
[392882725,1762105799030,1084.93,0.00030136,120]
[392882726,1762105799082,500.0,0.00030136,120]
[392882727,1762105799340,500.0,0.00030136,120]
[392882728,1762105799649,500.0,0.00030136,120]
[392882729,1762105799968,500.0,0.00030136,120]
[392882730,1762105800070,500.0,0.00030136,120]
[392882731,1762105800591,500.0,0.00030136,120]
[392882732,1762105800978,500.0,0.00030136,120]
[392882733,1762105801054,500.0,0.00030136,120]
[392882734,1762105801822,500.0,0.00030136,120]
[392882735,1762105802880,484.50008256,0.00030136,120]
[392882736,1762105803322,500.0,0.00030136,120]
[392882737,1762105804553,643.33,0.00030136,120]
[392882738,1762105804797,500.0,0.00030136,120]
[392882739,1762105805272,500.0,0.00030136,120]
[392882740,1762105805676,500.0,0.00030136,120]
[392882741,1762105805776,500.0,0.00030136,120]
[392882742,1762105806268,500.0,0.00030136,120]
[392882743,1762105806347,500.0,0.00030136,120]
[392882744,1762105806738,264.58227014,0.00030136,120]
[392882745,1762105806786,500.0,0.00030136,120]
[392882746,1762105807767,500.0,0.00030136,120]
[392882747,1762105807965,500.0,0.00030136,120]
[392882748,1762105808537,500.0,0.00030136,120]
[392882749,1762105808946,394.45042871,0.00030136,120]
[392882750,1762105809330,699.11,0.00030136,120]
[392882751,1762105810258,500.0,0.00030136,120]
[392882752,1762105810605,500.0,0.00030136,120]
[392882753,1762105811768,500.0,0.00030136,120]
[392882754,1762105811979,500.0,0.00030136,120]
[392882755,1762105812089,822.78,0.00030136,120]
[392882756,1762105812143,1327.97,0.00030136,120]
[392882757,1762105812224,500.0,0.00030136,120]
[392882758,1762105812429,1218.43,0.00030136,120]
[392882760,1762105813191,500.0,0.00030136,120]
[392882761,1762105813333,500.0,0.00030136,120]
[392882762,1762105813788,500.0,0.00030136,120]
[392882763,1762105814440,500.0,0.00030136,120]
[392882764,1762105815392,567.72136509,0.00030136,120]
[392882765,1762105815471,523.51,0.00030136,120]
[392882766,1762105816331,500.0,0.00030136,120]
[392882767,1762105816554,500.0,0.00030136,120]
[392882768,1762105816621,500.0,0.00030136,120]
[392882769,1762105816812,500.0,0.00030136,120]
[392882770,1762105816946,500.0,0.00030136,120]
[392882771,1762105817072,500.0,0.00030136,120]
[392882772,1762105817157,500.0,0.00030136,120]
[392882773,1762105817280,500.0,0.00030136,120]
[392882774,1762105818229,500.0,0.00030136,120]
[392882775,1762105818277,1998.7,0.00030136,120]
[392882776,1762105818880,500.0,0.00030136,120]
[392882777,1762105819184,583.1727433,0.00030136,120]
[392882778,1762105819507,514.76657533,0.00030136,120]
[392882779,1762105819558,500.0,0.00030136,120]
[392882780,1762105820076,500.0,0.00030136,120]
[392882781,1762105820480,500.0,0.00030136,120]
[392882782,1762105820752,500.0,0.00030136,120]
[392882783,1762105820858,500.0,0.00030136,120]
[392882784,1762105820950,525.07006556,0.00030136,120]
[392882785,1762105821448,500.0,0.00030136,120]
[392882786,1762105822373,500.0,0.00030136,120]
[392882787,1762105822605,1372.42,0.00030136,120]
[392882788,1762105822720,500.0,0.00030136,120]
[392882789,1762105822833,500.0,0.00030136,120]
[392882790,1762105823128,500.0,0.00030136,120]
[392882791,1762105823473,566.39628269,0.00030136,120]
[392882792,1762105823563,500.0,0.00030136,120]
[392882793,1762105823801,512.33,0.00030136,120]
[392882794,1762105823940,500.0,0.00030136,120]
[392882795,1762105824517,500.0,0.00030136,120]
[392882796,1762105825222,821.25,0.00030136,120]
[392882797,1762105825751,500.0,0.00030136,120]
[392882798,1762105825873,500.0,0.00030136,120]
[392882799,1762105826006,500.0,0.00030136,120]
[392882800,1762105826133,500.0,0.00030136,120]
[392882801,1762105826593,500.0,0.00030136,120]
[392882802,1762105828655,500.0,0.00030136,120]
[392882803,1762105828999,500.0,0.00030136,120]
[392882804,1762105829046,500.0,0.00030136,120]
[392882805,1762105829132,500.0,0.00030136,120]
[392882806,1762105829312,500.0,0.00030136,120]
[392882807,1762105829402,500.0,0.00030136,120]
[392882808,1762105829595,500.0,0.00030136,120]
[392882809,1762105830080,500.0,0.00030136,120]
[392882810,1762105830375,500.0,0.00030136,120]
[392882811,1762105830528,500.0,0.00030136,120]
[392882812,1762105830717,500.0,0.00030136,120]
[392882813,1762105831091,500.0,0.00030136,120]
[392882814,1762105831227,500.0,0.00030136,120]
[392882821,1762105831721,-180.74200019,0.00014628,2]
[392882823,1762105831730,-89.95032868,0.00014652,2]
[392882825,1762105831777,-105.04967132,0.00014652,2]
[392882826,1762105831786,-300.0,0.00014675,2]
[392882827,1762105831795,-180.74200019,0.00014723,2]
[392882828,1762105831805,-149.85851361,0.00014723,2]
[392882829,1762105831817,-2604.21148639,0.00014723,2]
[392882830,1762105831826,-306.47,0.00014748,2]
[392882831,1762105831836,-221.66766337,0.00014763,2]
[392882832,1762105831845,-500.0,0.00014849,2]
[392882833,1762105831855,-258.96462,0.0001485,2]
[392882834,1762105831864,-239.84119403,0.00014866,2]
[392882835,1762105831873,-150.0,0.0001487,2]
[392882836,1762105831883,-300.0,0.0001487,2]
[392882837,1762105831893,-910.34789794,0.0001487,2]
[392882838,1762105831927,-289.65210206,0.0001487,2]
[392882839,1762105831936,-231.15,0.00014871,2]
[392882840,1762105831946,-880.40285041,0.00014871,2]
[392882841,1762105831958,-119.58714959,0.00014871,2]
[392882842,1762105831967,-9999.99,0.00014871,2]
[392882843,1762105831977,-605.42285041,0.00014871,2]
[392882844,1762105831995,-4297.33242817,0.00014871,2]
[392882845,1762105832006,-251.44472142,0.00014871,2]
[392882846,1762105832016,-1588.96,0.00014871,2]
[392882847,1762105832025,-499.99,0.00014871,2]
[392882848,1762105832035,-5786.18,0.00014871,2]
[392882849,1762105832044,-9999.99,0.00014874,2]
[392882851,1762105832053,-20885.79775126,0.00014875,2]
[392882852,1762105832062,-168.0,0.00014878,2]
[392882853,1762105832071,-515.33176881,0.00014891,2]
[392882854,1762105832080,-151.0,0.00014891,2]
[392882855,1762105832089,-151.0,0.00014891,2]
[392882856,1762105832098,-151.0,0.00014891,2]
[392882857,1762105832107,-151.0,0.00014891,2]
[392882858,1762105832116,-151.0,0.00014891,2]
[392882859,1762105832126,-151.0,0.00014891,2]
[392882860,1762105832135,-151.0,0.00014891,2]
[392882861,1762105832144,-151.0,0.00014891,2]
[392882862,1762105832154,-151.0,0.00014891,2]
[392882863,1762105832163,-206.42094446,0.00014891,2]
[392882864,1762105832173,-151.0,0.00014891,2]
[392882865,1762105832183,-151.0,0.00014891,2]
[392882866,1762105832192,-151.0,0.00014891,2]
[392882867,1762105832201,-151.0,0.00014891,2]
[392882868,1762105832211,-151.0,0.00014891,2]
[392882869,1762105832220,-151.0,0.00014891,2]
[392882870,1762105832229,-151.0,0.00014891,2]
[392882871,1762105832238,-151.0,0.00014891,2]
[392882872,1762105832247,-151.0,0.00014891,2]
[392882873,1762105832256,-151.0,0.00014891,2]
[392882874,1762105832265,-151.0,0.00014891,2]
[392882875,1762105832275,-151.0,0.00014891,2]
[392882876,1762105832284,-151.0,0.00014891,2]
[392882877,1762105832294,-151.0,0.00014891,2]
[392882878,1762105832303,-151.0,0.00014891,2]
[392882879,1762105832312,-151.0,0.00014891,2]
[392882880,1762105832321,-151.0,0.00014891,2]
[392882881,1762105832330,-151.0,0.00014891,2]
[392882882,1762105832339,-151.0,0.00014891,2]
[392882883,1762105832348,-151.0,0.00014891,2]
[392882884,1762105832357,-151.0,0.00014891,2]
[392882885,1762105832368,-151.0,0.00014891,2]
[392882886,1762105832377,-151.0,0.00014891,2]
[392882887,1762105832386,-151.0,0.00014891,2]
[392882888,1762105832396,-207.55137453,0.00014891,2]
[392882889,1762105832405,-151.0,0.00014891,2]
[392882890,1762105832417,-496.47127164,0.00014891,2]
[392882891,1762105832426,-151.0,0.00014891,2]
[392882892,1762105832437,-248.52407258,0.00014891,2]
[392882893,1762105832447,-322.6107,0.00014891,2]
[392882894,1762105832457,-151.0,0.00014891,2]
[392882895,1762105832466,-151.0,0.00014891,2]
[392882896,1762105832476,-500.0,0.00014899,2]
[392882897,1762105832485,-500.0,0.00014899,2]
[392882898,1762105832494,-500.0,0.00014899,2]
[392882899,1762105832504,-500.0,0.00014899,2]
[392882900,1762105832513,-500.0,0.00014899,2]
[392882901,1762105832522,-500.0,0.00014899,2]
[392882902,1762105832531,-500.0,0.00014899,2]
[392882903,1762105832540,-500.0,0.00014899,2]
[392882904,1762105832552,-500.0,0.00014899,2]
[392882905,1762105832561,-231.10836625,0.00014899,2]
[392882906,1762105832570,-500.0,0.00014899,2]
[392882907,1762105832580,-500.0,0.00014899,2]
[392882908,1762105832590,-500.0,0.00014899,2]
[392882909,1762105832599,-500.0,0.00014899,2]
[392882910,1762105832609,-500.0,0.00014899,2]
[392882911,1762105832619,-500.0,0.00014899,2]
[392882912,1762105832627,-500.0,0.00014899,2]
[392882913,1762105832637,-524.82129601,0.00014899,2]
[392882914,1762105832646,-500.0,0.00014899,2]
[392882915,1762105832655,-500.0,0.00014899,2]
[392882916,1762105832664,-249.28843605,0.00014899,2]
[392882917,1762105832673,-500.0,0.00014899,2]
[392882918,1762105832682,-500.0,0.00014899,2]
[392882919,1762105832691,-388.898022,0.00014899,2]
[392882920,1762105832700,-500.0,0.00014899,2]
[392882921,1762105832709,-500.0,0.00014899,2]
[392882922,1762105832718,-500.0,0.00014899,2]
[392882923,1762105832728,-500.0,0.00014899,2]
[392882924,1762105832736,-500.0,0.00014899,2]
[392882925,1762105832745,-500.0,0.00014899,2]
[392882926,1762105832754,-500.0,0.00014899,2]
[392882927,1762105832763,-500.0,0.00014899,2]
[392882928,1762105832772,-500.0,0.00014899,2]
[392882929,1762105832781,-500.0,0.00014899,2]
[392882930,1762105832790,-500.0,0.00014899,2]
[392882931,1762105832799,-500.0,0.00014899,2]
[392882932,1762105832809,-179.00219778,0.00014899,2]
[392882933,1762105832818,-166.81764599,0.000149,2]
[392882934,1762105832827,-189.58520706,0.000149,2]
[392882935,1762105832836,-16068.21967616,0.000149,2]
[392882936,1762105832849,-660.1,0.000149,2]
[392882937,1762105832863,-19294.02619121,0.000149,2]
[392882938,1762105832873,-1727.52540775,0.000149,2]
[392882939,1762105832882,-3783.5076399,0.000149,2]
[392882940,1762105832893,-1216.4923601,0.000149,2]
[392882941,1762105832905,-507.33613157,0.000149,2]
[392882942,1762105832915,-477.45087779,0.00014952,2]
[392882943,1762105832925,-5800.0,0.00014966,2]
[392882944,1762105832936,-542.320165,0.00014973,2]
[392882945,1762105832948,-161.80681393,0.00014973,2]
[392882946,1762105832960,-500.0,0.00014973,2]
[392882947,1762105832970,-500.0,0.00014973,2]
[392882948,1762105832979,-501.53442277,0.00014973,2]
[392882949,1762105832989,-500.0,0.00014973,2]
[392882950,1762105832998,-500.0,0.00014973,2]
[392882951,1762105833008,-501.22801815,0.00014973,2]
[392882952,1762105833017,-171.53113476,0.00014973,2]
[392882953,1762105833027,-500.0,0.00014973,2]
[392882954,1762105833036,-500.0,0.00014973,2]
[392882955,1762105833045,-500.0,0.00014973,2]
[392882956,1762105833053,-515.69815063,0.00014973,2]
[392882957,1762105833063,-500.0,0.00014973,2]
[392882958,1762105833071,-500.0,0.00014973,2]
[392882959,1762105833080,-500.0,0.00014973,2]
[392882960,1762105833089,-500.0,0.00014973,2]
[392882961,1762105833098,-500.0,0.00014973,2]
[392882962,1762105833107,-500.0,0.00014973,2]
[392882963,1762105833117,-500.0,0.00014973,2]
[392882964,1762105833126,-500.0,0.00014973,2]
[392882965,1762105833135,-5800.0,0.00014974,2]
[392882966,1762105833144,-258.96462,0.0001498,2]
[392882967,1762105833153,-168.0,0.0001498,2]
[392882968,1762105833163,-5800.0,0.00014983,2]
[392882969,1762105833171,-150.0,0.00014986,2]
[392882970,1762105833181,-150.0,0.00014986,2]
[392882971,1762105833191,-236.77189106,0.00014986,2]
[392882972,1762105833200,-150.0,0.00014986,2]
[392882973,1762105833212,-160.82492808,0.00014986,2]
[392882974,1762105833221,-268.58161013,0.00014986,2]
[392882975,1762105833231,-150.00000001,0.00014986,2]
[392882976,1762105833240,-967.25,0.00014991,2]
[392882977,1762105833249,-5800.0,0.00014991,2]
[392882978,1762105833259,-500.0,0.00014999,2]
[392882979,1762105833268,-150.0,0.00014999,2]
[392882980,1762105833278,-150.0,0.00014999,2]
[392882981,1762105833288,-150.0,0.00014999,2]
[392882982,1762105833297,-500.0,0.00014999,2]
[392882983,1762105833307,-150.0,0.00014999,2]
[392882984,1762105833316,-150.0,0.00014999,2]
[392882985,1762105833326,-150.0,0.00014999,2]
[392882986,1762105833336,-150.0,0.00014999,2]
[392882987,1762105833346,-500.0,0.00014999,2]
[392882988,1762105833356,-150.0,0.00014999,2]
[392882989,1762105833365,-150.0,0.00014999,2]
[392882990,1762105833375,-150.0,0.00014999,2]
[392882991,1762105833384,-562.0,0.00014999,2]
[392882992,1762105833394,-150.0,0.00014999,2]
[392882993,1762105833403,-150.0,0.00014999,2]
[392882994,1762105833414,-500.0,0.00014999,2]
[392882995,1762105833424,-500.0,0.00014999,2]
[392882996,1762105833433,-500.0,0.00014999,2]
[392882997,1762105833442,-500.0,0.00014999,2]
[392882998,1762105833451,-500.0,0.00014999,2]
[392882999,1762105833461,-134.00921316,0.00014999,2]
[392883000,1762105833473,-365.99078684,0.00014999,2]
[392883001,1762105833482,-441.92221316,0.00014999,2]
[392883002,1762105833501,-77.00782537,0.00014999,2]
[392883003,1762105833511,-409.86320463,0.00014999,2]
[392883004,1762105834122,582.70018212,0.00030136,120]
[392883005,1762105835041,500.0,0.00030136,120]
[392883006,1762105835094,500.0,0.00030136,120]
[392883007,1762105835208,500.0,0.00030136,120]
[392883008,1762105835335,500.0,0.00030136,120]
[392883009,1762105835630,1949.01,0.00030136,120]
[392883010,1762105835678,500.0,0.00030136,120]
[392883011,1762105836634,520.83244942,0.00030136,120]
[392883013,1762105837733,-90.13679537,0.00014999,2]
[392883014,1762105837747,-414.44,0.00014999,2]
[392883015,1762105837760,-500.0,0.00014999,2]
[392883016,1762105837772,-150.0,0.00014999,2]
[392883017,1762105837785,-200.0,0.00014999,2]
[392883018,1762105837797,-150.0,0.00014999,2]
[392883019,1762105837810,-150.0,0.00014999,2]
[392883020,1762105837822,-3420.0,0.00015,2]
[392883021,1762105837836,-819.0,0.00015,2]
[392883022,1762105837848,-1272.0,0.00015,2]
[392883023,1762105837860,-1200.503,0.00015,2]
[392883024,1762105837872,-379.082,0.00015,2]
[392883025,1762105837887,-10207.12727179,0.00015,2]
[392883026,1762105837904,-233283.91836637,0.00015,2]
[392883027,1762105837982,533.55,0.00030136,120]
[392883028,1762105837995,-22858.91022056,0.00015,2]
[392883029,1762105838007,-6406.10200456,0.00015,2]
[392883030,1762105838020,-213325.14293528,0.00015,2]
[392883031,1762105838092,-263.513,0.00015,2]
[392883032,1762105838102,-2366.46461171,0.00015,2]
[392883033,1762105838188,500.0,0.00030136,120]
[392883034,1762105838224,-423.82310137,0.00015,2]
[392883044,1762105838702,-1461.05871817,0.00015,2]
[392883045,1762105838890,500.0,0.00030136,120]
[392883046,1762105839413,500.0,0.00030136,120]
[392883048,1762105839745,500.0,0.00030136,120]
[392883049,1762105839791,-287.80638503,0.000149,2]
[392883050,1762105839801,-608789.69421881,0.00015,2]
[392883051,1762105839883,-2155.13980718,0.00015,2]
[392883052,1762105839939,-305.0000025,0.00015,2]
[392883053,1762105839993,-8923.829886,0.00015,2]
[392883054,1762105840039,-2090.40897658,0.00015,2]
[392883055,1762105840090,500.0,0.00030136,120]
[392883056,1762105840170,-395.472,0.00015,2]
[392883058,1762105840247,500.0,0.00030136,120]
[392883059,1762105840606,500.0,0.00030136,120]
[392883060,1762105840982,1096.6,0.00030136,120]
[392883061,1762105841485,500.0,0.00030136,120]
[392883062,1762105842298,500.0,0.00030136,120]
[392883063,1762105842848,-27402.29659495,0.00015,2]
[392883064,1762105842883,-927.35336414,0.00015,2]
[392883065,1762105842894,-3755.54023686,0.00015,2]
[392883066,1762105842934,-441.25,0.00015,2]
[392883067,1762105842996,-551.58075001,0.00015,2]
[392883068,1762105843096,500.0,0.00030136,120]
[392883071,1762105843289,500.0,0.00030136,120]
[392883072,1762105843602,500.0,0.00030136,120]
[392883073,1762105843679,648.6075072,0.00030136,120]
[392883074,1762105844025,912.18,0.00030136,120]
[392883075,1762105845098,618.91885602,0.00030136,120]
[392883076,1762105846072,579.36,0.00030136,120]
[392883077,1762105846112,-500.0,0.00014899,2]
[392883078,1762105846122,-500.0,0.00014899,2]
[392883079,1762105846133,-500.0,0.00014899,2]
[392883080,1762105846143,-414.29728509,0.00014899,2]
[392883083,1762105846256,-85.70271491,0.00014899,2]
[392883084,1762105846266,-500.0,0.00014899,2]
[392883085,1762105846276,-500.0,0.00014899,2]
[392883086,1762105846286,-308.54863314,0.00014899,2]
[392883087,1762105846296,-500.0,0.00014899,2]
[392883088,1762105846305,-159.75277179,0.000149,2]
[392883089,1762105846315,-16394.13452749,0.00015,2]
[392883090,1762105846356,-2349.84545385,0.00015,2]
[392883091,1762105846369,-10968.5188671,0.00015,2]
[392883093,1762105846397,-387.82092303,0.00015,2]
[392883094,1762105847635,509.65538684,0.00030136,120]
[392883095,1762105847999,1903.33,0.00030136,120]
[392883096,1762105848479,500.0,0.00030136,120]
[392883097,1762105848792,500.0,0.00030136,120]
[392883098,1762105849342,500.0,0.00030136,120]
[392883099,1762105849506,500.0,0.00030136,120]
[392883100,1762105850002,500.0,0.00030136,120]
[392883101,1762105850546,500.0,0.00030136,120]
[392883102,1762105850598,533.40286169,0.00030136,120]
[392883103,1762105850676,500.0,0.00030136,120]
[392883104,1762105850734,500.0,0.00030136,120]
[392883105,1762105850965,1110.83,0.00030136,120]
[392883106,1762105851351,500.0,0.00030136,120]
[392883107,1762105851797,500.0,0.00030136,120]
[392883108,1762105852138,500.0,0.00030136,120]
[392883109,1762105852203,500.0,0.00030136,120]
[392883110,1762105852380,500.0,0.00030136,120]
[392883111,1762105852679,500.0,0.00030136,120]
[392883113,1762105852837,500.0,0.00030136,120]
[392883114,1762105853166,500.0,0.00030136,120]
[392883115,1762105853233,500.0,0.00030136,120]
[392883116,1762105853385,500.0,0.00030136,120]
[392883117,1762105853926,500.0,0.00030136,120]
[392883118,1762105854762,500.0,0.00030136,120]
[392883119,1762105855131,500.0,0.00030136,120]
[392883120,1762105855184,500.0,0.00030136,120]
[392883121,1762105855805,500.0,0.00030136,120]
[392883122,1762105855854,500.0,0.00030136,120]
[392883123,1762105856456,500.0,0.00030136,120]
[392883124,1762105857487,647.62380217,0.00030136,120]
[392883125,1762105857901,545.41368612,0.00030136,120]
[392883126,1762105858305,500.0,0.00030136,120]
[392883127,1762105858630,500.0,0.00030136,120]
[392883128,1762105859320,500.0,0.00030136,120]
[392883129,1762105859452,500.0,0.00030136,120]
[392883130,1762105859667,500.0,0.00030136,120]
[392883131,1762105859813,500.0,0.00030136,120]
[392883132,1762105859892,500.0,0.00030136,120]
[392883133,1762105860226,558.2,0.00030136,120]
[392883134,1762105861088,500.0,0.00030136,120]
[392883135,1762105861309,500.0,0.00030136,120]
[392883136,1762105862247,500.0,0.00030136,120]
[392883137,1762105862297,500.0,0.00030136,120]
[392883138,1762105862396,500.0,0.00030136,120]
[392883139,1762105862704,500.0,0.00030136,120]
[392883140,1762105862785,500.0,0.00030136,120]
[392883141,1762105862978,500.0,0.00030136,120]
[392883142,1762105863227,500.0,0.00030136,120]
[392883143,1762105863461,500.0,0.00030136,120]
[392883144,1762105863793,500.0,0.00030136,120]
[392883145,1762105864739,500.0,0.00030136,120]
[392883146,1762105864921,500.0,0.00030136,120]
[392883147,1762105865318,500.0,0.00030136,120]
[392883148,1762105865580,500.0,0.00030136,120]
[392883149,1762105866015,500.0,0.00030136,120]
[392883150,1762105866095,500.0,0.00030136,120]
[392883151,1762105866163,500.0,0.00030136,120]
[392883152,1762105866419,500.0,0.00030136,120]
[392883153,1762105866625,500.0,0.00030136,120]
[392883154,1762105868247,500.0,0.00030136,120]
[392883155,1762105868749,500.0,0.00030136,120]
[392883156,1762105869035,500.0,0.00030136,120]
[392883157,1762105869372,500.0,0.00030136,120]
[392883158,1762105869561,500.0,0.00030136,120]
[392883159,1762105869626,500.0,0.00030136,120]
[392883160,1762105869715,500.0,0.00030136,120]
[392883161,1762105869763,596.44724525,0.00030136,120]
[392883162,1762105869993,500.0,0.00030136,120]
[392883163,1762105870233,500.0,0.00030136,120]
[392883164,1762105870780,500.0,0.00030136,120]
[392883165,1762105871280,500.0,0.00030136,120]
[392883166,1762105871600,500.0,0.00030136,120]